lending/lending_fUSD_20240504
["ID","MTS","AMOUNT","RATE_DAILY","PERIOD"]
[325415961,1714855865033,-500.0,0.00041369,31]
[325415962,1714855865042,-568.16,0.00041369,31]
[325415963,1714855865052,-500.0,0.00041369,31]
[325415964,1714855865062,-500.0,0.00041369,31]
[325415965,1714855865073,-500.0,0.00041369,31]
[325415966,1714855865086,-500.0,0.00041369,31]
[325415967,1714855865096,-513.68998203,0.00041369,31]
[325415968,1714855865106,-1468.59,0.00041369,31]
[325415969,1714855865115,-500.0,0.00041369,31]
[325415970,1714855865124,-500.0,0.00041369,31]
[325415971,1714855865133,-1269.83,0.00041369,31]
[325415972,1714855865143,-500.0,0.00041369,31]
[325415973,1714855865152,-500.0,0.00041369,31]
[325415974,1714855865161,-1075.81,0.00041369,31]
[325415975,1714855865170,-500.0,0.00041369,31]
[325415976,1714855865180,-500.0,0.00041369,31]
[325415977,1714855865191,-500.0,0.00041369,31]
[325415978,1714855865201,-500.0,0.00041369,31]
[325415979,1714855865210,-1991.76,0.00041369,31]
[325415980,1714855865219,-597.52,0.00041369,31]
[325415981,1714855865229,-748.38,0.00041369,31]
[325415982,1714855865238,-1720.38,0.00041369,31]
[325415983,1714855865247,-1512.75,0.00041369,31]
[325415984,1714855865256,-1261.88,0.00041369,31]
[325415985,1714855865265,-500.0,0.00041369,31]
[325415986,1714855865275,-500.0,0.00041369,31]
[325415987,1714855865284,-1266.13,0.00041369,31]
[325415988,1714855865293,-526.09,0.00041369,31]
[325415989,1714855865303,-500.0,0.00041369,31]
[325415990,1714855865313,-500.0,0.00041369,31]
[325415991,1714855865323,-843.05,0.00041369,31]
[325415992,1714855865332,-1165.4,0.00041369,31]
[325415993,1714855865341,-683.77,0.00041369,31]
[325415994,1714855865351,-500.0,0.00041369,31]
[325415995,1714855865360,-1212.47,0.00041369,31]
[325415996,1714855865372,-500.0,0.00041369,31]
[325415997,1714855865381,-500.0,0.00041369,31]
[325415998,1714855865391,-500.0,0.00041369,31]
[325415999,1714855865400,-1639.91,0.00041369,31]
[325416000,1714855865409,-555.66,0.00041369,31]
[325416001,1714855865419,-3024.9,0.00041369,31]
[325416002,1714855865429,-2515.29,0.00041369,31]
[325416003,1714855865438,-324.6869477,0.00041369,31]
[325416004,1714855865448,-835.83,0.00041369,31]
[325416005,1714855865458,-530.27,0.00041369,31]
[325416006,1714855865468,-723.64,0.00041369,31]
[325416007,1714855865478,-500.0,0.00041369,31]
[325416008,1714855865487,-751.0,0.00041369,31]
[325416009,1714855865497,-500.0,0.00041369,31]
[325416010,1714855865507,-500.0,0.00041369,31]
[325416011,1714855865517,-1252.06,0.00041369,31]
[325416012,1714855865526,-1613.89,0.00041369,30]
[325416013,1714855865536,-500.0,0.00041369,31]
[325416014,1714855865546,-571.93028283,0.00041369,31]
[325416015,1714855865555,-1361.38,0.00041369,31]
[325416016,1714855865565,-500.0,0.00041369,31]
[325416017,1714855865575,-998.41,0.00041369,31]
[325416018,1714855865585,-1177.14,0.00041369,31]
[325416019,1714855865594,-500.0,0.00041369,31]
[325416020,1714855865604,-1373.37,0.00041369,31]
[325416021,1714855865614,-500.0,0.00041369,31]
[325416022,1714855865624,-500.0,0.00041369,31]
[325416023,1714855865633,-911.53,0.00041369,31]
[325416024,1714855865643,-1332.83,0.00041369,31]
[325416025,1714855865653,-500.0,0.00041369,31]
[325416026,1714855865663,-1359.65,0.00041369,31]
[325416027,1714855865673,-500.0,0.00041369,31]
[325416028,1714855865682,-1155.56,0.00041369,31]
[325416029,1714855865693,-696.8,0.00041369,31]
[325416030,1714855865702,-3316.07,0.00041369,31]
[325416031,1714855865712,-500.0,0.00041369,31]
[325416032,1714855865721,-500.0,0.00041369,31]
[325416033,1714855865730,-500.0,0.00041369,31]
[325416034,1714855865740,-1729.95,0.00041369,31]
[325416035,1714855865750,-585.88,0.00041369,31]
[325416036,1714855865759,-500.0,0.00041369,31]
[325416037,1714855865768,-945.37,0.00041369,31]
[325416038,1714855865777,-983.34,0.00041369,31]
[325416039,1714855865790,-752.64,0.00041369,31]
[325416040,1714855865800,-601.08,0.00041369,31]
[325416041,1714855865810,-500.0,0.00041369,31]
[325416042,1714855865819,-189.46040872,0.00041369,31]
[325416043,1714855865830,-500.0,0.00041369,31]
[325416044,1714855865840,-500.0,0.00041369,31]
[325416045,1714855865849,-500.0,0.00041369,31]
[325416046,1714855865858,-777.56,0.00041369,31]
[325416047,1714855865868,-957.27,0.00041369,31]
[325416048,1714855865878,-163.64056373,0.00041369,31]
[325416049,1714855865888,-2602.23,0.00041369,31]
[325416050,1714855865899,-1033.67,0.00041369,31]
[325416051,1714855865908,-1346.62,0.00041369,31]
[325416052,1714855865918,-1027.05,0.00041369,31]
[325416053,1714855865928,-1259.37,0.00041369,31]
[325416054,1714855865937,-525.51594478,0.00041369,31]
[325416055,1714855865948,-1245.07,0.00041369,31]
[325416056,1714855865958,-500.0,0.00041369,31]
[325416057,1714855865968,-1508.16,0.00041369,31]
[325416058,1714855865978,-1604.71,0.00041369,31]
[325416059,1714855865988,-500.0,0.00041369,31]
[325416060,1714855865998,-500.0,0.00041369,31]
[325416061,1714855866008,-4897.6,0.00041369,31]
[325416062,1714855866017,-752.05,0.00041369,31]
[325416063,1714855866027,-500.0,0.00041369,31]
[325416064,1714855866037,-500.0,0.00041369,31]
[325416066,1714855866047,-500.0,0.00041369,31]
[325416067,1714855866056,-1337.97,0.00041369,31]
[325416068,1714855866066,-1453.61,0.00041369,31]
[325416069,1714855866076,-500.0,0.00041369,31]
[325416070,1714855866086,-500.0,0.00041369,31]
[325416071,1714855866096,-1786.68,0.00041369,31]
[325416072,1714855866107,-850.43,0.00041369,31]
[325416073,1714855866116,-1073.63,0.00041369,31]
[325416074,1714855866126,-721.03,0.00041369,31]
[325416075,1714855866136,-500.0,0.00041369,31]
[325416076,1714855866146,-692.66,0.00041369,31]
[325416077,1714855866156,-500.0,0.00041369,31]
[325416078,1714855866166,-31034.14,0.00041369,31]
[325416079,1714855866176,-606.98,0.00041369,31]
[325416080,1714855866186,-802.47,0.00041369,31]
[325416081,1714855866197,-500.0,0.00041369,31]
[325416082,1714855866207,-500.0,0.00041369,31]
[325416083,1714855866216,-1577.12,0.00041369,31]
[325416084,1714855866226,-651.41,0.00041369,31]
[325416085,1714855866235,-500.0,0.00041369,31]
[325416086,1714855866245,-500.0,0.00041369,31]
[325416087,1714855866255,-500.0,0.00041369,31]
[325416088,1714855866264,-1710.18,0.00041369,31]
[325416089,1714855866274,-2776.76,0.00041369,31]
[325416090,1714855866284,-500.0,0.00041369,31]
[325416091,1714855866294,-1534.34,0.00041369,31]
[325416092,1714855866304,-500.0,0.00041369,31]
[325416093,1714855866314,-912.12,0.00041369,31]
[325416094,1714855866324,-500.0,0.00041369,31]
[325416095,1714855866334,-500.0,0.00041369,31]
[325416096,1714855866344,-500.0,0.00041369,31]
[325416097,1714855866354,-500.0,0.00041369,31]
[325416098,1714855866364,-500.0,0.00041369,31]
[325416099,1714855866374,-500.0,0.00041369,31]
[325416100,1714855866383,-500.0,0.00041369,31]
[325416101,1714855866394,-500.0,0.00041369,31]
[325416102,1714855866404,-1274.37,0.00041369,31]
[325416103,1714855866415,-732.72,0.00041369,31]
[325416104,1714855866426,-500.0,0.00041369,31]
[325416105,1714855866436,-650.65,0.00041369,31]
[325416106,1714855866448,-500.0,0.00041369,31]
[325416107,1714855866457,-2488.51,0.00041369,31]
[325416108,1714855866468,-1032.49,0.00041369,31]
[325416109,1714855866479,-500.0,0.00041369,31]
[325416110,1714855866488,-1380.49,0.00041369,31]
[325416111,1714855866499,-1039.8,0.00041369,31]
[325416112,1714855866509,-557.21,0.00041369,31]
[325416113,1714855866519,-1128.8,0.00041369,31]
[325416114,1714855866530,-1095.93,0.00041369,31]
[325416115,1714855866540,-2874.42,0.00041369,31]
[325416116,1714855866550,-500.0,0.00041369,31]
[325416117,1714855866560,-502.58778491,0.00041369,31]
[325416118,1714855866569,-500.0,0.00041369,31]
[325416119,1714855866579,-500.0,0.00041369,31]
[325416120,1714855866589,-1496.48,0.00041369,31]
[325416121,1714855866599,-500.0,0.00041369,31]
[325416122,1714855866608,-1110.24,0.00041369,31]
[325416123,1714855866619,-500.0,0.00041369,31]
[325416124,1714855866629,-329.33363486,0.00041369,31]
[325416125,1714855866638,-3755.17,0.00041369,31]
[325416126,1714855866648,-500.0,0.00041369,31]
[325416127,1714855866658,-740.75,0.00041369,31]
[325416128,1714855866668,-500.0,0.00041369,31]
[325416129,1714855866679,-506.71043156,0.00041369,31]
[325416130,1714855866690,-631.08812306,0.00041369,31]
[325416131,1714855866700,-500.0,0.00041369,31]
[325416132,1714855866711,-500.0,0.00041369,31]
[325416133,1714855866722,-500.0,0.00041369,31]
[325416134,1714855866731,-500.0,0.00041369,31]
[325416135,1714855866742,-1722.67,0.00041369,31]
[325416136,1714855866751,-500.0,0.00041369,31]
[325416137,1714855866761,-500.0,0.00041369,31]
[325416138,1714855866771,-934.4,0.00041369,31]
[325416139,1714855866782,-1126.66,0.00041369,31]
[325416140,1714855866797,-691.7,0.00041369,31]
[325416141,1714855866810,-500.0,0.00041369,31]
[325416142,1714855866819,-2956.24,0.00041369,31]
[325416143,1714855866834,-864.99,0.00041369,31]
[325416144,1714855866844,-500.0,0.00041369,31]
[325416145,1714855866867,-500.0,0.00041369,31]
[325416146,1714855866882,-965.96,0.00041369,31]
[325416147,1714855866897,-500.0,0.00041369,31]
[325416148,1714855866907,-1196.45,0.00041369,31]
[325416149,1714855866918,-500.0,0.00041369,31]
[325416150,1714855866936,-1080.53,0.00041369,31]
[325416151,1714855866950,-500.0,0.00041369,31]
[325416152,1714855866961,-500.32,0.00041369,31]
[325416153,1714855866971,-831.46,0.00041369,31]
[325416154,1714855867000,-500.0,0.00041369,31]
[325416155,1714855867027,-500.0,0.00041369,31]
[325416156,1714855867042,-617.88990281,0.00041369,31]
[325416157,1714855867062,-500.0,0.00041369,31]
[325416158,1714855867075,-684.67,0.00041369,31]
[325416159,1714855867085,-500.0,0.00041369,31]
[325416160,1714855867104,-1609.4,0.00041369,31]
[325416161,1714855867115,-2819.74,0.00041369,31]
[325416162,1714855867124,-500.0,0.00041369,31]
[325416163,1714855867135,-1000.0,0.00041369,31]
[325416164,1714855867145,-1167.55,0.00041369,31]
[325416165,1714855867157,-494.85948687,0.00041369,31]
[325416166,1714855867168,-509.65475514,0.00041369,31]
[325416167,1714855867196,-500.0,0.00041369,31]
[325416168,1714855867220,-930.74,0.00041369,31]
[325416169,1714855867233,-500.0,0.00041369,31]
[325416170,1714855867248,-782.31,0.00041369,31]
[325416171,1714855867260,-500.0,0.00041369,31]
[325416172,1714855867274,-773.57,0.00041369,31]
[325416173,1714855867284,-633.92,0.00041369,31]
[325416174,1714855867299,-500.0,0.00041369,31]
[325416175,1714855867327,-701.25,0.00041369,31]
[325416176,1714855867343,-811.09,0.00041369,31]
[325416177,1714855867358,-4587.86,0.00041369,31]
[325416178,1714855867369,-1469.12,0.00041369,31]
[325416179,1714855867379,-500.0,0.00041369,31]
[325416180,1714855867389,-500.0,0.00041369,31]
[325416181,1714855867399,-500.0,0.00041369,31]
[325416182,1714855867409,-1027.67,0.00041369,31]
[325416183,1714855867419,-511.59028291,0.00041369,31]
[325416184,1714855867428,-791.11,0.00041369,31]
[325416185,1714855867438,-500.0,0.00041369,31]
[325416186,1714855867450,-500.0,0.00041369,31]
[325416187,1714855867459,-815.25,0.00041369,31]
[325416188,1714855867469,-914.36,0.00041369,31]
[325416189,1714855867479,-623.0,0.00041369,31]
[325416190,1714855867488,-503.08275731,0.00041369,31]
[325416191,1714855867499,-7487.49,0.00041369,31]
[325416192,1714855867509,-500.0,0.00041369,31]
[325416193,1714855867518,-500.0,0.00041369,31]
[325416194,1714855867529,-563.66,0.00041369,31]
[325416195,1714855867539,-926.22,0.00041369,31]
[325416196,1714855867549,-558.41,0.00041369,31]
[325416197,1714855867559,-500.0,0.00041369,31]
[325416198,1714855867569,-500.0,0.00041369,31]
[325416199,1714855867580,-671.2,0.00041369,31]
[325416200,1714855867591,-500.0,0.00041369,31]
[325416201,1714855867601,-1170.03,0.00041369,31]
[325416202,1714855867612,-1221.02,0.00041369,31]
[325416203,1714855867623,-500.0,0.00041369,31]
[325416204,1714855867633,-500.0,0.00041369,31]
[325416205,1714855867644,-500.0,0.00041369,31]
[325416206,1714855867654,-500.0,0.00041369,31]
[325416207,1714855867664,-11556.97,0.00041369,31]
[325416208,1714855867674,-500.0,0.00041369,31]
[325416209,1714855867685,-10686.37,0.00041369,31]
[325416210,1714855867696,-500.0,0.00041369,31]
[325416211,1714855867707,-500.0,0.00041369,31]
[325416212,1714855867717,-500.0,0.00041369,31]
[325416213,1714855867727,-587.59,0.00041369,31]
[325416214,1714855867736,-641.72,0.00041369,31]
[325416215,1714855867746,-1405.75,0.00041369,31]
[325416216,1714855867756,-632.92,0.00041369,31]
[325416217,1714855867767,-500.0,0.00041369,31]
[325416218,1714855867778,-500.0,0.00041369,31]
[325416219,1714855868039,-9415.94,0.00041369,31]
[325416220,1714855868049,-1376.63,0.00041369,31]
[325416221,1714855868058,-500.0,0.00041369,31]
[325416222,1714855868067,-500.0,0.00041369,31]
[325416223,1714855868076,-1097.87,0.00041369,31]
[325416224,1714855868085,-500.0,0.00041369,31]
[325416225,1714855868095,-1625.13,0.00041369,31]
[325416226,1714855868104,-500.0,0.00041369,31]
[325416227,1714855868113,-500.0,0.00041369,31]
[325416228,1714855868122,-500.0,0.00041369,31]
[325416229,1714855868131,-500.0,0.00041369,31]
[325416230,1714855868141,-501.44905871,0.00041369,31]
[325416231,1714855868150,-906.96,0.00041369,31]
[325416232,1714855868159,-655.2,0.00041369,31]
[325416233,1714855868169,-285.69642614,0.00041369,31]
[325416234,1714855868178,-563.01,0.00041369,31]
[325416235,1714855868187,-3550.21,0.00041369,31]
[325416236,1714855868196,-2000.0,0.00041369,120]
[325416237,1714855868206,-1151.85,0.00041369,31]
[325416238,1714855868215,-1706.38,0.00041369,31]
[325416239,1714855868225,-603.04,0.00041369,31]
[325416240,1714855868234,-467.19118882,0.00041369,31]
[325416241,1714855868244,-20852.84,0.00041369,31]
[325416242,1714855868254,-500.0,0.00041369,31]
[325416243,1714855868263,-773.8,0.00041369,31]
[325416244,1714855868273,-500.0,0.00041369,31]
[325416245,1714855868283,-819.0,0.00041369,31]
[325416246,1714855868293,-500.0,0.00041369,31]
[325416247,1714855868303,-500.0,0.00041369,31]
[325416248,1714855868312,-562.4,0.00041369,31]
[325416249,1714855868322,-40526.23,0.00041369,31]
[325416250,1714855868331,-1272.14,0.00041369,31]
[325416251,1714855868341,-1077.81,0.00041369,31]
[325416252,1714855868350,-500.0,0.00041369,31]
[325416253,1714855868360,-500.0,0.00041369,31]
[325416254,1714855868370,-500.0,0.00041369,31]
[325416255,1714855868380,-500.0,0.00041369,31]
[325416256,1714855868389,-1245.79,0.00041369,31]
[325416257,1714855868399,-1328.36,0.00041369,31]
[325416258,1714855868408,-1094.66,0.00041369,31]
[325416259,1714855868417,-151.0,0.00041369,14]
[325416260,1714855868427,-1795.97,0.00041369,31]
[325416261,1714855868437,-508.19,0.00041369,31]
[325416262,1714855868447,-1334.46,0.00041369,31]
[325416263,1714855868457,-12930.05,0.00041369,31]
[325416264,1714855868467,-500.0,0.00041369,31]
[325416265,1714855868476,-593.7591164,0.00041369,31]
[325416266,1714855868486,-2463.33,0.00041369,31]
[325416267,1714855868496,-1100.31,0.00041369,31]
[325416268,1714855868505,-1500.0,0.00041369,31]
[325416269,1714855868515,-500.0,0.00041369,31]
[325416270,1714855868525,-911.4,0.00041369,31]
[325416271,1714855868534,-500.0,0.00041369,31]
[325416272,1714855868544,-500.0,0.00041369,31]
[325416273,1714855868554,-500.0,0.00041369,31]
[325416274,1714855868563,-500.0,0.00041369,31]
[325416275,1714855868573,-500.0,0.00041369,31]
[325416276,1714855868582,-3148.15,0.00041369,31]
[325416277,1714855868592,-1194.13,0.00041369,31]
[325416278,1714855868602,-543.76602352,0.00041369,31]
[325416279,1714855868612,-1438.2,0.00041369,31]
[325416280,1714855868621,-1228.82,0.00041369,31]
[325416281,1714855868631,-500.0,0.00041369,31]
[325416282,1714855868641,-1081.38,0.00041369,31]
[325416283,1714855868651,-500.0,0.00041369,31]
[325416284,1714855868661,-3117.19,0.00041369,31]
[325416285,1714855868671,-500.0,0.00041369,31]
[325416286,1714855868680,-500.0,0.00041369,31]
[325416287,1714855868689,-500.0,0.00041369,31]
[325416288,1714855868700,-692.31,0.00041369,31]
[325416289,1714855868710,-594.18,0.00041369,31]
[325416290,1714855868719,-1222.92,0.00041369,31]
[325416291,1714855868729,-500.0,0.00041369,31]
[325416292,1714855868738,-6770.64,0.00041369,31]
[325416293,1714855868747,-776.82,0.00041369,31]
[325416294,1714855868756,-1161.3,0.00041369,31]
[325416295,1714855868766,-500.0,0.00041369,31]
[325416296,1714855868775,-515.17,0.00041369,31]
[325416297,1714855868790,-312.45669114,0.00041369,31]
[325416298,1714855868800,-912.84,0.00041369,31]
[325416299,1714855868809,-4093.13,0.00041369,31]
[325416300,1714855868818,-1347.17,0.00041369,31]
[325416301,1714855868828,-500.0,0.00041369,31]
[325416302,1714855868838,-500.0,0.00041369,31]
[325416303,1714855868847,-500.0,0.00041369,31]
[325416304,1714855868858,-1619.63,0.00041369,31]
[325416305,1714855868871,-665.05,0.00041369,31]
[325416306,1714855868880,-6676.72,0.00041369,31]
[325416307,1714855868890,-919.81,0.00041369,31]
[325416308,1714855868899,-500.0,0.00041369,31]
[325416309,1714855868908,-2463.03,0.00041369,31]
[325416310,1714855868918,-1035.11,0.00041369,31]
[325416311,1714855868927,-500.0,0.00041369,31]
[325416312,1714855868936,-500.0,0.00041369,31]
[325416313,1714855868947,-500.0,0.00041369,31]
[325416314,1714855868956,-500.0,0.00041369,31]
[325416315,1714855868966,-488.13291737,0.00041369,31]
[325416316,1714855868975,-500.0,0.00041369,31]
[325416317,1714855868984,-500.0,0.00041369,31]
[325416318,1714855868994,-500.0,0.00041369,31]
[325416319,1714855869003,-620.97,0.00041369,31]
[325416320,1714855869012,-861.68,0.00041369,31]
[325416321,1714855869022,-500.0,0.00041369,31]
[325416322,1714855869031,-540.14,0.00041369,31]
[325416323,1714855869041,-1138.43,0.00041369,31]
[325416324,1714855869050,-490.98117741,0.00041369,31]
[325416325,1714855869060,-6974.52,0.00041369,31]
[325416326,1714855869069,-500.0,0.00041369,31]
[325416327,1714855869079,-3852.31,0.00041369,31]
[325416328,1714855869089,-1301.8,0.00041369,31]
[325416329,1714855869099,-500.0,0.00041369,31]
[325416330,1714855869108,-1502.78,0.00041369,31]
[325416331,1714855869117,-500.0,0.00041369,31]
[325416332,1714855869126,-500.0,0.00041369,31]
[325416333,1714855869136,-2676.57,0.00041369,31]
[325416334,1714855869145,-25614.85,0.00041369,31]
[325416335,1714855869155,-1465.78,0.00041369,31]
[325416336,1714855869164,-500.0,0.00041369,31]
[325416337,1714855869174,-1337.06,0.00041369,31]
[325416338,1714855869183,-500.0,0.00041369,31]
[325416339,1714855869194,-847.01,0.00041369,31]
[325416340,1714855869204,-500.0,0.00041369,31]
[325416341,1714855869214,-1476.7,0.00041369,31]
[325416342,1714855869223,-2500.0,0.00041369,10]
[325416343,1714855869233,-500.0,0.00041369,31]
[325416344,1714855869243,-1243.18,0.00041369,31]
[325416345,1714855869252,-500.0,0.00041369,31]
[325416346,1714855869261,-2500.0,0.00041369,10]
[325416347,1714855869270,-500.0,0.00041369,31]
[325416348,1714855869280,-2500.0,0.00041369,10]
[325416349,1714855869289,-2500.0,0.00041369,10]
[325416350,1714855869298,-2500.0,0.00041369,10]
[325416351,1714855869307,-2500.0,0.00041369,10]
[325416352,1714855869317,-6413.99,0.00041369,31]
[325416353,1714855869326,-500.0,0.00041369,31]
[325416354,1714855869336,-768.34,0.00041369,31]
[325416355,1714855869345,-6339.23,0.00041369,31]
[325416356,1714855869355,-2500.0,0.00041369,10]
[325416357,1714855869364,-2500.0,0.00041369,10]
[325416358,1714855869374,-1393.65,0.00041369,31]
[325416359,1714855869383,-2500.0,0.00041369,10]
[325416360,1714855869393,-2500.0,0.00041369,10]
[325416361,1714855869402,-2500.0,0.00041369,10]
[325416362,1714855869412,-4345.72,0.00041369,31]
[325416363,1714855869421,-2500.0,0.00041369,10]
[325416364,1714855869431,-1100.72,0.00041369,31]
[325416365,1714855869440,-2500.0,0.00041369,10]
[325416366,1714855869450,-500.0,0.00041369,31]
[325416367,1714855869459,-2500.0,0.00041369,10]
[325416368,1714855869468,-2500.0,0.00041369,10]
[325416369,1714855869478,-2159.19944687,0.00041369,10]
[325416370,1714855869487,-500.0,0.00041369,31]
[325416371,1714855869497,-1298.67,0.00041369,31]
[325416372,1714855869506,-2091.3,0.00041369,31]
[325416373,1714855869516,-2479.26,0.00041369,31]
[325416374,1714855869526,-1220.84,0.00041369,31]
[325416375,1714855869535,-500.0,0.00041369,31]
[325416376,1714855869545,-3222.22,0.00041369,31]
[325416377,1714855869554,-1140.21,0.00041369,31]
[325416378,1714855869564,-500.0,0.00041369,31]
[325416379,1714855869573,-1151.03,0.00041369,31]
[325416380,1714855869583,-500.0,0.00041369,31]
[325416381,1714855869592,-982.2,0.00041369,31]
[325416382,1714855869602,-500.0,0.00041369,31]
[325416383,1714855869611,-510.58472244,0.00041369,31]
[325416384,1714855869621,-10450.73,0.00041369,31]
[325416385,1714855869630,-1650.72,0.00041369,31]
[325416386,1714855869639,-886.17,0.00041369,31]
[325416387,1714855869648,-500.0,0.00041369,31]
[325416388,1714855869658,-500.0,0.00041369,31]
[325416389,1714855869668,-5241.9,0.00041369,31]
[325416390,1714855869677,-500.0,0.00041369,31]
[325416391,1714855869688,-1817.64,0.00041369,31]
[325416392,1714855869699,-2847.23,0.00041369,31]
[325416393,1714855869711,-1252.46,0.00041369,31]
[325416394,1714855869721,-2659.57,0.00041369,31]
[325416395,1714855869735,-500.0,0.00041369,31]
[325416396,1714855869746,-1330.38,0.00041369,31]
[325416397,1714855869760,-500.0,0.00041369,31]
[325416398,1714855869776,-428.92400603,0.00041369,31]
[325416399,1714855869802,-3688.77,0.00041369,31]
[325416400,1714855869819,-1214.19,0.00041369,31]
[325416401,1714855869832,-2745.6,0.00041369,31]
[325416402,1714855869859,-1556.19,0.00041369,31]
[325416403,1714855869872,-1243.81,0.00041369,31]
[325416404,1714855869882,-500.0,0.00041369,31]
[325416405,1714855869891,-500.0,0.00041369,31]
[325416406,1714855869921,-865.46,0.00041369,31]
[325416407,1714855869931,-901.64,0.00041369,31]
[325416408,1714855869981,-500.0,0.00041369,31]
[325416409,1714855870004,-500.0,0.00041369,31]
[325416410,1714855870019,-500.0,0.00041369,31]
[325416411,1714855870030,-500.0,0.00041369,31]
[325416412,1714855870040,-1107.74,0.00041369,31]
[325416413,1714855870056,-1320.38,0.00041369,31]
[325416414,1714855870072,-611.06,0.00041369,31]
[325416415,1714855870082,-5270.35,0.00041369,31]
[325416416,1714855870092,-4551.0,0.00041369,31]
[325416417,1714855870102,-500.0,0.00041369,31]
[325416418,1714855870111,-2052.48,0.00041369,31]
[325416419,1714855870124,-2961.52,0.00041369,31]
[325416420,1714855870134,-1133.43,0.00041369,31]
[325416421,1714855870144,-55568.39,0.00041369,31]
[325416422,1714855870153,-1584.7,0.00041369,31]
[325416423,1714855870163,-500.0,0.00041369,31]
[325416424,1714855870173,-500.0,0.00041369,31]
[325416425,1714855870182,-500.0,0.00041369,31]
[325416426,1714855870193,-500.0,0.00041369,31]
[325416427,1714855870206,-500.0,0.00041369,31]
[325416428,1714855870215,-500.0,0.00041369,31]
[325416429,1714855870224,-500.0,0.00041369,31]
[325416430,1714855870234,-1441.76,0.00041369,31]
[325416431,1714855870244,-500.0,0.00041369,31]
[325416432,1714855870254,-1288.48,0.00041369,31]
[325416433,1714855870263,-2544.75,0.00041369,31]
[325416434,1714855870273,-1719.85,0.00041369,31]
[325416435,1714855870283,-500.0,0.00041369,31]
[325416436,1714855870292,-2732.0,0.00041369,31]
[325416437,1714855870302,-949.82,0.00041369,31]
[325416438,1714855870312,-500.0,0.00041369,31]
[325416439,1714855870321,-763.21,0.00041369,31]
[325416440,1714855870331,-1155.66,0.00041369,31]
[325416441,1714855870342,-500.0,0.00041369,31]
[325416442,1714855870353,-3915.58,0.00041369,31]
[325416443,1714855870363,-2119.6,0.00041369,31]
[325416444,1714855870373,-1316.33,0.00041369,31]
[325416445,1714855870383,-500.0,0.00041369,31]
[325416446,1714855870393,-542.00331939,0.00041369,31]
[325416447,1714855870403,-521.37592685,0.00041369,31]
[325416448,1714855870422,-505.16766043,0.00041369,31]
[325416449,1714855870432,-500.0,0.00041369,31]
[325416450,1714855870446,-500.0,0.00041369,31]
[325416451,1714855870472,-1323.0,0.00041369,31]
[325416452,1714855870482,-500.0,0.00041369,31]
[325416453,1714855870499,-1795.04,0.00041369,31]
[325416454,1714855870510,-12925.96,0.00041369,31]
[325416455,1714855870538,-500.0,0.00041369,31]
[325416456,1714855870552,-1701.23,0.00041369,31]
[325416457,1714855870667,-500.0,0.00041369,31]
[325416458,1714855870679,-1065.81,0.00041369,31]
[325416459,1714855870696,-500.0,0.00041369,31]
[325416460,1714855870706,-500.0,0.00041369,31]
[325416461,1714855870737,-12493.99,0.00041369,31]